lending/lending_fUSD_20241005
["ID","MTS","AMOUNT","RATE_DAILY","PERIOD"]
[339868058,1728094264884,-151.0,0.000405,14]
[339868059,1728094264894,-184.945654,0.000405,14]
[339868060,1728094264903,-151.0,0.000405,14]
[339868061,1728094264913,-151.0,0.000405,14]
[339868062,1728094264922,-151.0,0.000405,14]
[339868063,1728094264932,-151.0,0.000405,14]
[339868064,1728094264942,-618.740063,0.000405,14]
[339868065,1728094264952,-618.740063,0.000405,14]
[339868066,1728094264961,-618.740063,0.000405,14]
[339868067,1728094264971,-618.740056,0.000405,14]
[339868068,1728094264981,-151.0,0.000405,14]
[339868069,1728094264991,-151.0,0.000405,14]
[339868070,1728094265000,-305.623152,0.000405,14]
[339868071,1728094265010,-305.623152,0.000405,14]
[339868072,1728094265019,-305.623152,0.000405,14]
[339868073,1728094265029,-305.623152,0.000405,14]
[339868074,1728094265039,-1076.319676,0.000405,14]
[339868075,1728094265049,-1076.319674,0.000405,14]
[339868076,1728094265058,-298.470644,0.000405,14]
[339868077,1728094265068,-298.470644,0.000405,14]
[339868078,1728094265077,-298.470644,0.000405,14]
[339868079,1728094265087,-298.470644,0.000405,14]
[339868080,1728094265096,-151.0,0.000405,14]
[339868081,1728094265105,-210.327145,0.000405,14]
[339868082,1728094265115,-151.0,0.000405,14]
[339868083,1728094265125,-253.661559,0.000405,14]
[339868084,1728094265134,-151.0,0.000405,14]
[339868085,1728094265143,-151.0,0.000405,14]
[339868086,1728094265153,-151.0,0.000405,14]
[339868087,1728094265162,-197.765299,0.000405,14]
[339868088,1728094265172,-1000000.0,0.000405,120]
[339868089,1728094265182,-238.27330472,0.00040508,7]
[339868090,1728094265191,-150.0,0.00040516,7]
[339868091,1728094265201,-150.0,0.00040518,7]
[339868092,1728094265210,-500.0,0.00040531,120]
[339868093,1728094265220,-660.99,0.00040531,120]
[339868094,1728094265229,-1218.65,0.00040531,120]
[339868095,1728094265239,-500.0,0.00040531,120]
[339868096,1728094265248,-586.53,0.00040531,120]
[339868097,1728094265258,-612.34,0.00040531,120]
[339868098,1728094265267,-753.54,0.00040531,120]
[339868099,1728094265276,-500.0,0.00040531,120]
[339868100,1728094265287,-664.83,0.00040531,120]
[339868101,1728094265297,-500.0,0.00040531,120]
[339868102,1728094265307,-913.92,0.00040531,120]
[339868103,1728094265318,-500.0,0.00040531,120]
[339868104,1728094265327,-500.0,0.00040531,120]
[339868105,1728094265336,-610.6,0.00040531,120]
[339868106,1728094265345,-500.0,0.00040531,120]
[339868107,1728094265354,-540.0,0.00040531,120]
[339868108,1728094265363,-150.0,0.00040533,2]
[339868109,1728094265372,-238.27330472,0.00040539,7]
[339868110,1728094265382,-1911.21,0.00040547,120]
[339868111,1728094265393,-2000.0,0.00040547,2]
[339868112,1728094265404,-500.0,0.00040561,120]
[339868113,1728094265413,-500.0,0.00040561,120]
[339868114,1728094265423,-500.0,0.00040561,120]
[339868115,1728094265434,-1013.96,0.00040561,120]
[339868116,1728094265443,-500.0,0.00040561,120]
[339868117,1728094265453,-150.0,0.00040563,7]
[339868118,1728094265464,-150.0,0.00040565,7]
[339868119,1728094265474,-150.0,0.00040567,7]
[339868120,1728094265484,-238.27330472,0.00040569,7]
[339868121,1728094265495,-238.27330472,0.000406,7]
[339868122,1728094265505,-16881.56041957,0.000406,30]
[339868123,1728094265516,-150.0,0.00040609,7]
[339868124,1728094265527,-150.0,0.00040609,7]
[339868125,1728094265536,-150.0,0.00040617,7]
[339868126,1728094265545,-238.27330472,0.0004063,7]
[339868127,1728094265555,-150.0,0.00040655,7]
[339868128,1728094265564,-856.75,0.00040656,120]
[339868129,1728094265575,-500.0,0.00040656,120]
[339868130,1728094265587,-500.0,0.00040657,120]
[339868131,1728094265597,-209.6335212,0.00040657,120]
[339868132,1728094265607,-731.5,0.00040657,120]
[339868133,1728094265617,-500.0,0.00040657,120]
[339868134,1728094265628,-500.0,0.00040657,120]
[339868135,1728094265637,-238.27330472,0.00040661,7]
[339868136,1728094265647,-150.0,0.00040666,7]
[339868137,1728094265656,-238.27330472,0.00040691,7]
[339868138,1728094265667,-150.0,0.00040702,7]
[339868139,1728094265678,-150.0,0.00040708,7]
[339868140,1728094265688,-150.0,0.00040715,7]
[339868141,1728094265703,-238.27330472,0.00040721,7]
[339868142,1728094265712,-150.0,0.00040725,7]
[339868143,1728094265721,-500.0,0.00040734,120]
[339868144,1728094265730,-500.0,0.00040734,120]
[339868145,1728094265740,-447.71057255,0.00040734,120]
[339868146,1728094265750,-1453.12,0.00040734,120]
[339868147,1728094265759,-521.73,0.00040734,120]
[339868148,1728094265770,-638.8,0.00040734,120]
[339868149,1728094265780,-500.0,0.00040734,120]
[339868150,1728094265789,-721.35,0.00040734,120]
[339868151,1728094265799,-537.24,0.00040734,120]
[339868152,1728094265810,-816.06,0.00040734,120]
[339868153,1728094265822,-1170.45,0.00040734,120]
[339868154,1728094265833,-500.0,0.00040734,120]
[339868155,1728094265843,-500.0,0.00040734,120]
[339868156,1728094265854,-150.0,0.00040734,120]
[339868157,1728094265865,-569.94,0.00040734,120]
[339868158,1728094265873,-500.0,0.00040734,24]
[339868159,1728094265882,-953.05,0.00040734,120]
[339868160,1728094265892,-1035.66,0.00040734,120]
[339868161,1728094265901,-500.0,0.00040734,120]
[339868162,1728094265910,-500.0,0.00040734,120]
[339868163,1728094265919,-1507.64,0.00040734,120]
[339868164,1728094265928,-300.74686035,0.00040734,120]
[339868165,1728094265937,-153.22629114,0.00040734,120]
[339868166,1728094265947,-875.69,0.00040734,120]
[339868167,1728094265956,-500.0,0.00040734,120]
[339868168,1728094265966,-1180.55,0.00040734,120]
[339868169,1728094265975,-152.75025876,0.00040739,2]
[339868170,1728094265985,-157.10051,0.00040748,120]
[339868171,1728094265995,-150.0,0.00040748,7]
[339868172,1728094266005,-238.27330472,0.00040752,7]
[339868173,1728094266015,-150.0,0.00040765,7]
[339868174,1728094266024,-238.27330472,0.00040782,7]
[339868175,1728094266034,-150.0,0.00040795,7]
[339868176,1728094266043,-500.0,0.00040805,120]
[339868177,1728094266053,-660.99,0.00040805,120]
[339868178,1728094266063,-1218.65,0.00040805,120]
[339868179,1728094266072,-500.0,0.00040805,120]
[339868180,1728094266082,-586.53,0.00040805,120]
[339868181,1728094266092,-612.34,0.00040805,120]
[339868182,1728094266102,-753.54,0.00040805,120]
[339868183,1728094266112,-500.0,0.00040805,120]
[339868184,1728094266125,-664.83,0.00040805,120]
[339868185,1728094266135,-500.0,0.00040805,120]
[339868186,1728094266145,-913.92,0.00040805,120]
[339868187,1728094266155,-500.0,0.00040805,120]
[339868188,1728094266164,-197.29826199,0.00040805,120]
[339868189,1728094266173,-610.6,0.00040805,120]
[339868190,1728094266182,-551.24258342,0.00040805,120]
[339868191,1728094266192,-540.0,0.00040805,120]
[339868192,1728094266201,-238.27330472,0.00040813,7]
[339868193,1728094266211,-150.0,0.00040814,7]
[339868194,1728094266221,-1911.21,0.00040821,120]
[339868195,1728094266231,-500.0,0.00040835,120]
[339868196,1728094266240,-500.0,0.00040835,120]
[339868197,1728094266252,-500.0,0.00040835,120]
[339868198,1728094266262,-1013.96,0.00040835,120]
[339868199,1728094266272,-500.0,0.00040835,120]
[339868200,1728094266282,-150.0,0.00040841,7]
[339868201,1728094266291,-150.0,0.00040841,7]
[339868202,1728094266301,-238.27330472,0.00040843,7]
[339868203,1728094266310,-150.0,0.00040852,7]
[339868204,1728094266319,-150.0,0.00040864,7]
[339868205,1728094266330,-220.0,0.0004087,30]
[339868206,1728094266339,-238.27330472,0.00040874,7]
[339868207,1728094266348,-220.0,0.0004088,30]
[339868208,1728094266357,-150.0,0.00040887,7]
[339868209,1728094266366,-220.0,0.0004089,30]
[339868210,1728094266376,-229.629748,0.000409,30]
[339868211,1728094266386,-300.0,0.000409,14]
[339868212,1728094266396,-238.27330472,0.00040904,7]
[339868213,1728094266405,-150.0,0.00040913,7]
[339868214,1728094266414,-856.75,0.0004093,120]
[339868215,1728094266423,-500.0,0.0004093,120]
[339868216,1728094266433,-731.5,0.00040931,120]
[339868217,1728094266443,-509.48499457,0.00040931,120]
[339868218,1728094266452,-500.0,0.00040931,120]
[339868219,1728094266462,-150.0,0.00040934,7]
[339868220,1728094266471,-238.27330472,0.00040935,7]
[339868221,1728094266481,-11896.27712732,0.00040955,120]
[339868222,1728094266491,-150.0,0.00040957,7]
[339868223,1728094266500,-150.0,0.00040962,7]
[339868224,1728094266509,-238.27330472,0.00040965,7]
[339868225,1728094266519,-150.0,0.0004098,7]
[339868226,1728094266529,-238.27330472,0.00040995,7]
[339868227,1728094266538,-150.0,0.00040995,7]
[339868228,1728094266548,-50000.0,0.00041,31]
[339868229,1728094266558,-50000.0,0.00041,41]
[339868230,1728094266569,-777686.19029146,0.00041,120]
[339868231,1728094266710,-3954.21964599,0.00041,120]
[339868232,1728094266721,-4994.31155209,0.00041,120]
[339868233,1728094266732,-359.58943198,0.00041,120]
[339868234,1728094266743,-643.23488832,0.00041,120]
[339868235,1728094266756,-1340.90112219,0.00041,120]
[339868236,1728094266767,-796.27942431,0.00041,120]
[339868237,1728094266884,-535.85788251,0.00041,120]
[339868238,1728094266907,-1534.61932229,0.00041,120]
[339868239,1728094266919,-807.73443717,0.00041,120]
[339868240,1728094266935,-312.004999,0.00041,120]
[339868241,1728094266946,-1244.6844767,0.00041,120]
[339868242,1728094266957,-1596.3,0.00041,120]
[339868243,1728094266968,-16857.1500304,0.00041,120]
[339868244,1728094266979,-18527.41837375,0.00041,120]
[339868245,1728094266991,-1031.00172718,0.00041,120]
[339868246,1728094267002,-11448.48168142,0.00041,120]
[339868247,1728094267013,-2837.74696614,0.00041,120]
[339868248,1728094267024,-1998.04330152,0.00041,120]
[339868249,1728094267036,-837.74750378,0.00041,120]
[339868250,1728094267047,-338.0226125,0.00041,120]
[339868251,1728094267058,-1383.34382756,0.00041,120]
[339868252,1728094267069,-3265.7901458,0.00041,120]
[339868253,1728094267081,-4285.81638443,0.00041,120]
[339868254,1728094267092,-1861.34075647,0.00041,120]
[339868255,1728094267103,-727.40483639,0.00041,120]
[339868256,1728094267114,-17004.07780853,0.00041,120]
[339868257,1728094267125,-121790.68657012,0.00041,120]
[339868258,1728094267135,-15246.82335735,0.00041,60]
[339868259,1728094267144,-10216.69741463,0.00041,120]
[339868260,1728094267153,-10755.75220328,0.00041,120]
[339868261,1728094267165,-489244.24779672,0.00041,120]
[339868262,1728094267174,-40000.0,0.00041,100]
[339868263,1728094267183,-30000.0,0.00041,30]
[339868264,1728094267193,-5000.0,0.00041,30]
[339868265,1728094267202,-172.24102622,0.00041,33]
[339868266,1728094267210,-151.0,0.00041,14]
[339868267,1728094267219,-169.309547,0.00041,14]
[339868268,1728094267229,-169.309552,0.00041,14]
[339868269,1728094267238,-445.22724,0.00041,14]
[339868270,1728094267247,-445.227245,0.00041,14]
[339868271,1728094267257,-182.372402,0.00041,14]
[339868272,1728094267266,-182.372401,0.00041,14]
[339868273,1728094267275,-151.0,0.00041,14]
[339868274,1728094267284,-151.0,0.00041,14]
[339868275,1728094267295,-232.856836,0.00041,14]
[339868276,1728094267304,-151.0,0.00041,14]
[339868277,1728094267313,-152.1317,0.00041,7]
[339868278,1728094267322,-152.131696,0.00041,7]
[339868279,1728094267331,-151.0,0.00041,14]
[339868280,1728094267341,-151.0,0.00041,14]
[339868281,1728094267350,-151.0,0.00041,14]
[339868282,1728094267359,-151.0,0.00041,14]
[339868283,1728094267369,-305.623152,0.00041,14]
[339868284,1728094267378,-305.623146,0.00041,14]
[339868285,1728094267387,-298.470644,0.00041,14]
[339868286,1728094267396,-298.470646,0.00041,14]
[339868287,1728094267405,-500.0,0.00041008,120]
[339868288,1728094267414,-500.0,0.00041008,120]
[339868289,1728094267423,-1453.12,0.00041008,120]
[339868290,1728094267432,-521.73,0.00041008,120]
[339868291,1728094267441,-638.8,0.00041008,120]
[339868292,1728094267450,-500.0,0.00041008,120]
[339868293,1728094267460,-721.35,0.00041008,120]
[339868294,1728094267469,-537.24,0.00041008,120]
[339868295,1728094267478,-816.06,0.00041008,120]
[339868296,1728094267487,-1170.45,0.00041008,120]
[339868297,1728094267496,-372.85938485,0.00041008,120]
[339868298,1728094267505,-500.0,0.00041008,120]
[339868299,1728094267515,-150.0,0.00041008,120]
[339868300,1728094267524,-569.94,0.00041008,120]
[339868301,1728094267534,-500.0,0.00041008,24]
[339868302,1728094267543,-953.05,0.00041008,120]
[339868303,1728094267553,-1035.66,0.00041008,120]
[339868304,1728094267562,-500.0,0.00041008,120]
[339868305,1728094267571,-500.0,0.00041008,120]
[339868306,1728094267580,-1507.64,0.00041008,120]
[339868307,1728094267589,-875.69,0.00041008,120]
[339868308,1728094267598,-500.0,0.00041008,120]
[339868309,1728094267608,-1180.55,0.00041008,120]
[339868310,1728094267617,-150.0,0.00041012,7]
[339868311,1728094267626,-238.27330472,0.00041026,7]
[339868312,1728094267635,-150.0,0.00041026,7]
[339868313,1728094267644,-238.27330472,0.00041056,7]
[339868314,1728094267653,-150.0,0.00041061,7]
[339868315,1728094267662,-150.0,0.00041073,7]
[339868316,1728094267671,-150.0,0.00041073,7]
[339868317,1728094267680,-500.0,0.00041079,120]
[339868318,1728094267690,-660.99,0.00041079,120]
[339868319,1728094267700,-1218.65,0.00041079,120]
[339868320,1728094267712,-473.44592705,0.00041079,120]
[339868321,1728094267723,-586.53,0.00041079,120]
[339868322,1728094267732,-612.34,0.00041079,120]
[339868323,1728094267741,-753.54,0.00041079,120]
[339868324,1728094267754,-500.0,0.00041079,120]
[339868325,1728094267764,-664.83,0.00041079,120]
[339868326,1728094267773,-500.0,0.00041079,120]
[339868327,1728094267782,-913.92,0.00041079,120]
[339868328,1728094267791,-500.0,0.00041079,120]
[339868329,1728094267800,-610.6,0.00041079,120]
[339868330,1728094267809,-540.0,0.00041079,120]
[339868331,1728094267819,-238.27330472,0.00041087,7]
[339868332,1728094267829,-1911.21,0.00041095,120]
[339868333,1728094267839,-815.94,0.00041095,30]
[339868334,1728094267848,-815.94,0.00041095,30]
[339868335,1728094267857,-815.94,0.00041095,30]
[339868336,1728094267867,-815.94,0.00041095,30]
[339868337,1728094267876,-815.94,0.00041095,30]
[339868338,1728094267885,-815.94,0.00041095,30]
[339868339,1728094267894,-815.94,0.00041095,30]
[339868340,1728094267903,-815.94,0.00041095,30]
[339868341,1728094267912,-815.94,0.00041095,30]
[339868342,1728094267922,-815.94,0.00041095,30]
[339868343,1728094267931,-815.94,0.00041095,30]
[339868344,1728094267940,-815.94,0.00041095,30]
[339868345,1728094267950,-815.94,0.00041095,30]
[339868346,1728094267959,-815.94,0.00041095,30]
[339868347,1728094267969,-815.94,0.00041095,30]
[339868348,1728094267978,-815.94,0.00041095,30]
[339868349,1728094267987,-815.94,0.00041095,30]
[339868350,1728094267997,-815.94,0.00041095,30]
[339868351,1728094268006,-815.94,0.00041095,30]
[339868352,1728094268015,-157.0,0.00041096,2]
[339868353,1728094268024,-215.0,0.000411,2]
[339868354,1728094268033,-217.0,0.000411,2]
[339868355,1728094268052,-214.0,0.000411,2]
[339868356,1728094268061,-214.0,0.000411,2]
[339868357,1728094268070,-214.0,0.000411,2]
[339868358,1728094268079,-201.0,0.000411,2]
[339868359,1728094268089,-266.0,0.000411,30]
[339868360,1728094268098,-214.0,0.000411,2]
[339868361,1728094268107,-201.0,0.000411,2]
[339868362,1728094268115,-266.0,0.000411,30]
[339868363,1728094268125,-214.0,0.000411,2]
[339868364,1728094268134,-212.0,0.000411,30]
[339868365,1728094268143,-500.0,0.00041109,120]
[339868366,1728094268151,-500.0,0.00041109,120]
[339868367,1728094268160,-500.0,0.00041109,120]
[339868368,1728094268169,-1013.96,0.00041109,120]
[339868369,1728094268178,-500.0,0.00041109,120]
[339868370,1728094268187,-150.0,0.00041111,30]
[339868371,1728094268197,-238.27330472,0.00041117,30]
[339868372,1728094268206,-150.0,0.00041119,30]
[339868373,1728094268215,-150.0,0.00041139,30]
[339868374,1728094268224,-238.27330472,0.00041148,30]
[339868375,1728094268233,-151.100504,0.00041148,120]
[339868376,1728094268242,-310.62064469,0.00041149,15]
[339868377,1728094268251,-384.6719894,0.0004115,2]
[339868378,1728094268260,-150.0,0.0004116,30]
[339868379,1728094268269,-150.0,0.00041165,30]
[339868380,1728094268279,-238.27330472,0.00041178,30]
[339868381,1728094268291,-150.0,0.00041189,30]
[339868382,1728094268300,-856.75,0.00041204,120]
[339868383,1728094268310,-602.13670258,0.00041204,120]
[339868384,1728094268319,-815.94,0.00041205,30]
[339868385,1728094268328,-731.5,0.00041205,120]
[339868386,1728094268337,-500.0,0.00041205,120]
[339868387,1728094268346,-238.27330472,0.00041209,30]
[339868388,1728094268355,-150.0,0.0004121,30]
[339868389,1728094268364,-150.0,0.00041212,30]
[339868390,1728094268374,-238.27330472,0.00041239,30]
[339868391,1728094268384,-150.0,0.00041247,30]
[339868392,1728094268394,-156.907,0.0004125,120]
[339868393,1728094268405,-156.907,0.0004125,120]
[339868394,1728094268417,-156.907,0.0004125,120]
[339868395,1728094268429,-150.0,0.00041258,30]
[339868396,1728094268439,-150.0,0.00041259,30]
[339868397,1728094268450,-238.27330472,0.00041269,30]
[339868398,1728094268461,-500.0,0.00041282,120]
[339868399,1728094268472,-500.0,0.00041282,120]
[339868400,1728094268480,-1453.12,0.00041282,120]
[339868401,1728094268490,-521.73,0.00041282,120]
[339868402,1728094268500,-638.8,0.00041282,120]
[339868403,1728094268510,-500.0,0.00041282,120]
[339868404,1728094268519,-721.35,0.00041282,120]
[339868405,1728094268529,-537.24,0.00041282,120]
[339868406,1728094268541,-816.06,0.00041282,120]
[339868407,1728094268550,-1170.45,0.00041282,120]
[339868408,1728094268559,-351.40799739,0.00041282,120]
[339868409,1728094268568,-150.0,0.00041282,120]
[339868410,1728094268578,-569.94,0.00041282,120]
[339868411,1728094268587,-500.0,0.00041282,24]
[339868412,1728094268596,-953.05,0.00041282,120]
[339868413,1728094268608,-1035.66,0.00041282,120]
[339868414,1728094268617,-500.0,0.00041282,120]
[339868415,1728094268628,-500.0,0.00041282,120]
[339868416,1728094268637,-1507.64,0.00041282,120]
[339868417,1728094268648,-875.69,0.00041282,120]
[339868418,1728094268658,-500.0,0.00041282,120]
[339868419,1728094268668,-1180.55,0.00041282,120]
[339868420,1728094268679,-150.0,0.00041282,30]
[339868421,1728094268690,-229.48855108,0.00041285,120]
[339868422,1728094268699,-238.27330472,0.000413,30]
[339868423,1728094268712,-150.0,0.00041305,30]
[339868424,1728094268721,-150.0,0.00041305,30]
[339868425,1728094268730,-150.0,0.00041308,30]
[339868426,1728094268739,-238.27330472,0.0004133,30]
[339868427,1728094268750,-150.0,0.00041351,30]
[339868428,1728094268759,-500.0,0.00041353,120]
[339868429,1728094268768,-660.99,0.00041353,120]
[339868430,1728094268777,-1218.65,0.00041353,120]
[339868431,1728094268788,-586.53,0.00041353,120]
[339868432,1728094268796,-612.34,0.00041353,120]
[339868433,1728094268805,-753.54,0.00041353,120]
[339868434,1728094268814,-500.0,0.00041353,120]
[339868435,1728094268824,-664.83,0.00041353,120]
[339868436,1728094268833,-500.0,0.00041353,120]
[339868437,1728094268843,-913.92,0.00041353,120]
[339868438,1728094268853,-500.0,0.00041353,120]
[339868439,1728094268862,-610.6,0.00041353,120]
[339868440,1728094268871,-150.0,0.00041358,30]
[339868441,1728094268881,-238.27330472,0.00041361,30]
[339868442,1728094268890,-1911.21,0.00041369,120]
[339868443,1728094268900,-2000.0,0.00041369,2]
[339868444,1728094268909,-500.0,0.00041383,120]
[339868445,1728094268919,-500.0,0.00041383,120]
[339868446,1728094268928,-500.0,0.00041383,120]
[339868447,1728094268937,-1013.96,0.00041383,120]
[339868448,1728094268946,-500.0,0.00041383,120]
[339868449,1728094268955,-238.27330472,0.00041391,30]
[339868450,1728094268964,-150.0,0.00041397,30]
[339868451,1728094268974,-168.48510105,0.000414,120]
[339868452,1728094268983,-168.48510105,0.000414,120]
[339868453,1728094268992,-168.48510105,0.000414,120]
[339868454,1728094269002,-168.48510105,0.000414,120]
[339868455,1728094269011,-168.48510105,0.000414,120]
[339868456,1728094269021,-168.98,0.000414,120]
[339868457,1728094269030,-166.1486567,0.000414,120]
[339868458,1728094269042,-166.1486567,0.000414,120]
[339868459,1728094269051,-166.1486567,0.000414,120]
[339868460,1728094269060,-166.1486567,0.000414,120]
[339868461,1728094269070,-166.1486567,0.000414,120]
[339868462,1728094269079,-166.1486567,0.000414,120]
[339868463,1728094269088,-166.1486567,0.000414,120]
[339868464,1728094269097,-166.64,0.000414,120]
[339868465,1728094269107,-155.07645875,0.000414,120]
[339868466,1728094269116,-155.07645875,0.000414,120]
[339868467,1728094269125,-155.07645875,0.000414,120]
[339868468,1728094269134,-155.07645875,0.000414,120]
[339868469,1728094269144,-155.07645875,0.000414,120]
[339868470,1728094269154,-155.07645875,0.000414,120]
[339868471,1728094269163,-155.07645875,0.000414,120]
[339868472,1728094269173,-155.07645875,0.000414,120]
[339868473,1728094269182,-155.07645875,0.000414,120]
[339868474,1728094269193,-155.57,0.000414,120]
[339868475,1728094269202,-150.0,0.00041407,30]
[339868476,1728094269211,-150.0,0.0004142,30]
[339868477,1728094269220,-238.27330472,0.00041422,30]
[339868479,1728094269229,-150.0,0.00041426,30]
[339868480,1728094269239,-150.0,0.00041444,30]
[339868481,1728094269248,-1500.0,0.00041446,10]
[339868482,1728094269259,-157.10051,0.00041448,120]
[339868483,1728094269269,-238.27330472,0.00041452,30]
[339868484,1728094269280,-292.24,0.00041456,120]
[339868485,1728094269289,-150.0,0.00041457,30]
[339868486,1728094269299,-283.12,0.00041474,2]
[339868487,1728094269415,-856.75,0.00041478,120]
[339868488,1728094269424,-815.94,0.00041479,30]
[339868489,1728094269434,-731.5,0.00041479,120]
[339868490,1728094269443,-500.0,0.00041479,120]
[339868491,1728094269452,-238.27330472,0.00041482,30]
[339868492,1728094269462,-150.0,0.0004149,30]
[339868493,1728094269471,-1000000.0,0.000415,120]
[339868494,1728094269481,-500000.0,0.000415,120]
[339868495,1728094269491,-164.195762,0.000415,30]
[339868496,1728094269500,-150.0,0.00041506,30]
[339868497,1728094269510,-7921.90117661,0.00041507,15]
[339868498,1728094269519,-238.27330472,0.00041513,30]
[339868499,1728094269529,-150.0,0.00041536,30]
[339868500,1728094269539,-150.0,0.00041536,30]
[339868501,1728094269549,-238.27330472,0.00041543,30]
[339868502,1728094269558,-150.0,0.00041555,30]
[339868503,1728094269567,-500.0,0.00041556,120]
[339868504,1728094269578,-500.0,0.00041556,120]
[339868505,1728094269589,-1453.12,0.00041556,120]
[339868506,1728094269599,-521.73,0.00041556,120]
[339868507,1728094269608,-638.8,0.00041556,120]
[339868508,1728094269618,-500.0,0.00041556,120]
[339868509,1728094269627,-721.35,0.00041556,120]
[339868510,1728094269637,-537.24,0.00041556,120]
[339868511,1728094269647,-816.06,0.00041556,120]
[339868512,1728094269656,-1170.45,0.00041556,120]
[339868513,1728094269665,-150.0,0.00041556,120]
[339868514,1728094269675,-569.94,0.00041556,120]
[339868515,1728094269684,-500.0,0.00041556,24]
[339868516,1728094269693,-953.05,0.00041556,120]
[339868517,1728094269703,-1035.66,0.00041556,120]
[339868518,1728094269714,-500.0,0.00041556,120]
[339868519,1728094269724,-500.0,0.00041556,120]
[339868520,1728094269734,-1507.64,0.00041556,120]
[339868521,1728094269745,-875.69,0.00041556,120]
[339868522,1728094269754,-500.0,0.00041556,120]
[339868523,1728094269763,-1180.55,0.00041556,120]
[339868524,1728094269774,-150.0,0.00041569,30]
[339868525,1728094269783,-238.27330472,0.00041574,30]
[339868526,1728094269792,-152.0,0.00041579,5]
[339868527,1728094269802,-150.0,0.00041583,30]
[339868528,1728094269811,-167.57,0.00041603,2]
[339868529,1728094269823,-238.27330472,0.00041604,30]
[339868530,1728094269834,-150.0,0.00041605,30]
[339868531,1728094269845,-500.0,0.00041627,120]
[339868532,1728094269854,-660.99,0.00041627,120]
[339868533,1728094269864,-1218.65,0.00041627,120]
[339868534,1728094269873,-586.53,0.00041627,120]
[339868535,1728094269884,-612.34,0.00041627,120]
[339868536,1728094269894,-753.54,0.00041627,120]
[339868537,1728094269904,-500.0,0.00041627,120]
[339868538,1728094269914,-664.83,0.00041627,120]
[339868539,1728094269924,-500.0,0.00041627,120]
[339868540,1728094269935,-913.92,0.00041627,120]
[339868541,1728094269945,-500.0,0.00041627,120]
[339868542,1728094269956,-610.6,0.00041627,120]
[339868543,1728094269965,-150.0,0.00041629,30]
[339868544,1728094269975,-238.27330472,0.00041635,30]
[339868545,1728094269984,-161.23,0.00041642,120]
[339868546,1728094269993,-1911.21,0.00041643,120]
[339868547,1728094270003,-150.0,0.00041652,30]
[339868548,1728094270012,-150.0,0.00041654,30]
[339868549,1728094270021,-500.0,0.00041657,120]
[339868550,1728094270030,-500.0,0.00041657,120]
[339868551,1728094270040,-500.0,0.00041657,120]
[339868552,1728094270049,-1013.96,0.00041657,120]
[339868553,1728094270058,-500.0,0.00041657,120]
[339868554,1728094270067,-238.27330472,0.00041665,30]
[339868555,1728094270076,-150.0,0.00041675,30]
[339868556,1728094270085,-238.27330472,0.00041696,30]
[339868557,1728094270094,-150.0,0.00041704,30]
[339868558,1728094270103,-150.0,0.00041713,30]